fUST/lending_fUST_20241025
["ID","MTS","AMOUNT","RATE_DAILY","PERIOD"]
[340810639,1729866647671,-616.6,0.00013972,2]
[340810640,1729866647682,-500.0,0.00013972,2]
[340810641,1729866647692,-1412.02,0.00013972,2]
[340810642,1729866647701,-2800.32,0.00013972,2]
[340810643,1729866647712,-1602.76,0.00013972,2]
[340810644,1729866647723,-500.0,0.00013972,2]
[340810646,1729866647733,-500.0,0.00013972,2]
[340810647,1729866647744,-3103.15,0.00013972,2]
[340810649,1729866647755,-500.0,0.00013972,2]
[340810651,1729866647764,-500.0,0.00013972,2]
[340810653,1729866647776,-561.29,0.00013972,2]
[340810655,1729866647788,-500.0,0.00013972,2]
[340810657,1729866647799,-1422.39,0.00013972,2]
[340810659,1729866647810,-500.0,0.00013972,2]
[340810661,1729866647820,-781.11,0.00013972,2]
[340810663,1729866647830,-500.0,0.00013972,2]
[340810665,1729866647841,-657.58,0.00013972,2]
[340810667,1729866647851,-1441.52,0.00013972,2]
[340810669,1729866647862,-959.19,0.00013972,2]
[340810672,1729866647875,-557.53,0.00013972,2]
[340810694,1729866648090,-1009.53,0.00013972,2]
[340810696,1729866648101,-500.0,0.00013972,2]
[340810698,1729866648112,-807.15,0.00013972,2]
[340810700,1729866648122,-500.0,0.00013972,2]
[340810702,1729866648134,-500.0,0.00013972,2]
[340810704,1729866648143,-18958.8,0.00013972,2]
[340810706,1729866648153,-500.0,0.00013972,2]
[340810708,1729866648163,-500.0,0.00013972,2]
[340810710,1729866648174,-707.27,0.00013972,2]
[340810712,1729866648184,-674.28,0.00013972,2]
[340810714,1729866648195,-897.4,0.00013972,2]
[340810716,1729866648205,-500.0,0.00013972,2]
[340810718,1729866648216,-955.3,0.00013972,2]
[340810720,1729866648225,-589.2,0.00013972,2]
[340810722,1729866648236,-914.95,0.00013972,2]
[340810724,1729866648249,-3380.99,0.00013972,2]
[340810726,1729866648258,-500.0,0.00013972,2]
[340810728,1729866648269,-879.1,0.00013972,2]
[340810730,1729866648280,-500.0,0.00013972,2]
[340810732,1729866648291,-734.15,0.00013972,2]
[340810734,1729866648303,-397.13517096,0.00013972,2]
[340810735,1729866648313,-3277.92,0.00013972,2]
[340810737,1729866648323,-500.0,0.00013972,2]
[340810739,1729866648334,-768.42,0.00013972,2]
[340810741,1729866648344,-500.0,0.00013972,2]
[340810744,1729866648355,-828.11,0.00013972,2]
[340810746,1729866648365,-500.0,0.00013972,2]
[340810747,1729866648376,-500.0,0.00013972,2]
[340810750,1729866648387,-1023.77057606,0.00013972,2]
[340810785,1729866648761,-2214.56942394,0.00013972,2]
[340810787,1729866648771,-495.53057606,0.00013972,2]
[340810798,1729866648873,-4.46942394,0.00013972,2]
[340810800,1729866648884,-1363.0,0.00013972,2]
[340810802,1729866648895,-500.0,0.00013972,2]
[340810804,1729866648906,-500.0,0.00013972,2]
[340810806,1729866648916,-1376.47,0.00013972,2]
[340810808,1729866648926,-500.0,0.00013972,2]
[340810810,1729866648937,-500.0,0.00013972,2]
[340810812,1729866648946,-962.32,0.00013972,2]
[340810814,1729866648957,-500.0,0.00013972,2]
[340810816,1729866648967,-894.82,0.00013972,2]
[340810818,1729866648976,-500.0,0.00013972,2]
[340810820,1729866648986,-500.0,0.00013972,2]
[340810822,1729866648998,-500.0,0.00013972,2]
[340810824,1729866649008,-1297.15,0.00013972,2]
[340810826,1729866649019,-1500.0,0.00013972,2]
[340810829,1729866649030,-500.0,0.00013972,2]
[340810831,1729866649040,-1226.61,0.00013972,2]
[340810833,1729866649050,-779.49,0.00013972,2]
[340810835,1729866649060,-500.0,0.00013972,2]
[340810837,1729866649070,-371.49712135,0.00013972,2]
[340810839,1729866649080,-641.47,0.00013972,2]
[340810841,1729866649091,-500.0,0.00013972,2]
[340810843,1729866649101,-500.0,0.00013972,2]
[340810845,1729866649112,-2176.41,0.00013972,2]
[340810847,1729866649123,-500.0,0.00013972,2]
[340810849,1729866649133,-618.09,0.00013972,2]
[340810851,1729866649144,-500.0,0.00013972,2]
[340810853,1729866649155,-5322.38,0.00013972,2]
[340810855,1729866649166,-1018.24,0.00013972,2]
[340810857,1729866649176,-500.0,0.00013972,2]
[340810859,1729866649186,-500.0,0.00013972,2]
[340810861,1729866649196,-500.0,0.00013972,2]
[340810863,1729866649205,-990.12,0.00013972,2]
[340810865,1729866649215,-637.45,0.00013972,2]
[340810867,1729866649224,-1576.32,0.00013972,2]
[340810869,1729866649234,-6465.96,0.00013972,2]
[340810871,1729866649245,-696.44,0.00013972,2]
[340810873,1729866649255,-10520.43,0.00013972,2]
[340810875,1729866649264,-500.0,0.00013972,2]
[340810877,1729866649274,-2851.47,0.00013972,2]
[340810879,1729866649284,-3003.96,0.00013972,2]
[340810881,1729866649293,-500.0,0.00013972,2]
[340810883,1729866649306,-764.62,0.00013972,2]
[340810885,1729866649315,-3867.86,0.00013972,2]
[340810887,1729866649325,-961.7,0.00013972,2]
[340810888,1729866649335,-500.0,0.00013972,2]
[340810891,1729866649345,-1173.16,0.00013972,2]
[340810893,1729866649355,-500.0,0.00013972,2]
[340810894,1729866649365,-1227.75,0.00013972,2]
[340810896,1729866649375,-562.0,0.00013972,2]
[340810899,1729866649385,-500.0,0.00013972,2]
[340810900,1729866649395,-761.75,0.00013972,2]
[340810902,1729866649404,-500.0,0.00013972,2]
[340810904,1729866649414,-500.0,0.00013972,2]
[340810906,1729866649424,-500.0,0.00013972,2]
[340810909,1729866649435,-624.21,0.00013972,2]
[340810911,1729866649445,-1030.63,0.00013972,2]
[340810912,1729866649454,-500.0,0.00013973,2]
[340810914,1729866649464,-501.27542456,0.00013973,2]
[340810916,1729866649473,-500.0,0.00013973,2]
[340810918,1729866649484,-500.0,0.00013973,2]
[340810920,1729866649497,-500.22860524,0.00013973,2]
[340810922,1729866649507,-500.0,0.00013973,2]
[340810924,1729866649516,-500.0,0.00013973,2]
[340810926,1729866649527,-400.0,0.00013973,2]
[340810928,1729866649537,-155.106,0.0001418,2]
[340810930,1729866649546,-18834.329784,0.00014226,2]
[340810932,1729866649556,-21488.7428937,0.00014226,2]
[340810934,1729866649565,-151.0,0.00014236,2]
[340810936,1729866649575,-151.0,0.00014236,2]
[340810938,1729866649584,-18834.329784,0.00014236,2]
[340810940,1729866649594,-21488.7428937,0.00014236,2]
[340810942,1729866649604,-3922.34008662,0.00014245,2]
[340810944,1729866649614,-151.0,0.00014246,2]
[340810946,1729866649623,-657.0,0.00014246,2]
[340810948,1729866649633,-500.0,0.00014246,2]
[340810950,1729866649643,-500.0,0.00014246,2]
[340810952,1729866649653,-500.0,0.00014246,2]
[340810954,1729866649662,-707.61,0.00014246,2]
[340810956,1729866649672,-546.49,0.00014246,2]
[340810958,1729866649681,-151.0,0.00014246,2]
[340810960,1729866649690,-500.0,0.00014246,2]
[340810962,1729866649700,-500.0,0.00014246,2]
[340810964,1729866649710,-500.0,0.00014246,2]
[340810966,1729866649719,-515.13,0.00014246,2]
[340810967,1729866649729,-582.05,0.00014246,2]
[340810969,1729866649741,-645.91,0.00014246,2]
[340810972,1729866649752,-512.47,0.00014246,2]
[340810974,1729866649762,-500.0,0.00014246,2]
[340810976,1729866649771,-500.0,0.00014246,2]
[340810978,1729866649781,-505.03,0.00014246,2]
[340810980,1729866649791,-633.02,0.00014246,2]
[340810982,1729866649801,-500.0,0.00014246,2]
[340810983,1729866649810,-500.0,0.00014246,2]
[340810985,1729866649819,-500.0,0.00014246,2]
[340810987,1729866649829,-563.39,0.00014246,2]
[340810989,1729866649838,-594.86,0.00014246,2]
[340810991,1729866649847,-665.71,0.00014246,2]
[340810993,1729866649857,-500.0,0.00014246,2]
[340810995,1729866649866,-749.28,0.00014246,2]
[340810997,1729866649876,-802.92,0.00014246,2]
[340810999,1729866649886,-919.68,0.00014246,2]
[340811001,1729866649895,-500.0,0.00014246,2]
[340811003,1729866649905,-500.0,0.00014246,2]
[340811005,1729866649916,-500.0,0.00014246,2]
[340811007,1729866649925,-500.0,0.00014246,2]
[340811009,1729866649935,-500.0,0.00014246,2]
[340811011,1729866649946,-677.05,0.00014246,2]
[340811012,1729866649955,-500.0,0.00014246,2]
[340811014,1729866649965,-500.0,0.00014246,2]
[340811016,1729866649974,-1550.62,0.00014246,2]
[340811018,1729866649986,-500.0,0.00014246,2]
[340811020,1729866649997,-500.0,0.00014246,2]
[340811022,1729866650008,-503.27,0.00014246,2]
[340811024,1729866650019,-971.34,0.00014246,2]
[340811025,1729866650028,-500.0,0.00014246,2]
[340811026,1729866650038,-878.63,0.00014246,2]
[340811027,1729866650048,-538.86,0.00014246,2]
[340811028,1729866650057,-500.0,0.00014246,2]
[340811029,1729866650066,-500.0,0.00014246,2]
[340811030,1729866650076,-500.0,0.00014246,2]
[340811031,1729866650086,-517.94,0.00014246,2]
[340811032,1729866650095,-763.66,0.00014246,2]
[340811033,1729866650106,-639.83520661,0.00014246,2]
[340811034,1729866650115,-647.38,0.00014246,2]
[340811035,1729866650125,-500.0,0.00014246,2]
[340811037,1729866650134,-500.0,0.00014246,2]
[340811039,1729866650145,-500.0,0.00014246,2]
[340811041,1729866650156,-905.98,0.00014246,2]
[340811043,1729866650166,-929.53,0.00014246,2]
[340811045,1729866650175,-943.74,0.00014246,2]
[340811047,1729866650185,-622.64,0.00014246,2]
[340811049,1729866650195,-1868.15,0.00014246,2]
[340811051,1729866650205,-1614.97,0.00014246,2]
[340811053,1729866650214,-1763.8,0.00014246,2]
[340811055,1729866650224,-727.38,0.00014246,2]
[340811057,1729866650234,-500.0,0.00014246,2]
[340811059,1729866650245,-500.0,0.00014246,2]
[340811062,1729866650255,-670.75,0.00014246,2]
[340811064,1729866650264,-879.56,0.00014246,2]
[340811065,1729866650273,-500.0,0.00014246,2]
[340811067,1729866650282,-500.0,0.00014246,2]
[340811069,1729866650292,-500.0,0.00014246,2]
[340811071,1729866650307,-500.0,0.00014246,2]
[340811073,1729866650315,-500.0,0.00014246,2]
[340811075,1729866650325,-857.33,0.00014246,2]
[340811077,1729866650334,-500.0,0.00014246,2]
[340811079,1729866650344,-622.19,0.00014246,2]
[340811081,1729866650354,-500.0,0.00014246,2]
[340811083,1729866650363,-596.02,0.00014246,2]
[340811085,1729866650373,-500.0,0.00014246,2]
[340811087,1729866650385,-892.11,0.00014246,2]
[340811089,1729866650394,-559.69,0.00014246,2]
[340811091,1729866650404,-725.96,0.00014246,2]
[340811093,1729866650413,-506.85,0.00014246,2]
[340811095,1729866650423,-500.0,0.00014246,2]
[340811097,1729866650432,-500.0,0.00014246,2]
[340811099,1729866650442,-500.0,0.00014246,2]
[340811101,1729866650452,-977.85,0.00014246,2]
[340811103,1729866650462,-649.31,0.00014246,2]
[340811105,1729866650471,-596.31,0.00014246,2]
[340811107,1729866650480,-566.99,0.00014246,2]
[340811112,1729866650527,-500.0,0.00014246,2]
[340811114,1729866650537,-916.53,0.00014246,2]
[340811116,1729866650546,-570.79,0.00014246,2]
[340811118,1729866650556,-616.6,0.00014246,2]
[340811120,1729866650565,-370.82824504,0.00014246,2]
[340811122,1729866650575,-1602.76,0.00014246,2]
[340811124,1729866650585,-424.23047252,0.00014246,2]
[340811126,1729866650594,-500.0,0.00014246,2]
[340811128,1729866650604,-500.0,0.00014246,2]
[340811130,1729866650613,-561.29,0.00014246,2]
[340811132,1729866650623,-500.0,0.00014246,2]
[340811134,1729866650633,-1422.39,0.00014246,2]
[340811136,1729866650643,-500.0,0.00014246,2]
[340811138,1729866650652,-781.11,0.00014246,2]
[340811140,1729866650661,-151.0,0.00014246,2]
[340811142,1729866650671,-500.0,0.00014246,2]
[340811144,1729866650680,-657.58,0.00014246,2]
[340811146,1729866650689,-1441.52,0.00014246,2]
[340811148,1729866650699,-959.19,0.00014246,2]
[340811150,1729866650708,-557.53,0.00014246,2]
[340811151,1729866650717,-1009.53,0.00014246,2]
[340811153,1729866650726,-500.0,0.00014246,2]
[340811155,1729866650736,-807.15,0.00014246,2]
[340811157,1729866650748,-500.0,0.00014246,2]
[340811159,1729866650757,-500.0,0.00014246,2]
[340811161,1729866650767,-18958.8,0.00014246,2]
[340811163,1729866650777,-500.0,0.00014246,2]
[340811165,1729866650786,-500.0,0.00014246,2]
[340811167,1729866650796,-707.27,0.00014246,2]
[340811169,1729866650806,-674.28,0.00014246,2]
[340811171,1729866650815,-897.4,0.00014246,2]
[340811173,1729866650824,-500.0,0.00014246,2]
[340811175,1729866650833,-955.3,0.00014246,2]
[340811177,1729866650843,-589.2,0.00014246,2]
[340811179,1729866650852,-914.95,0.00014246,2]
[340811181,1729866650863,-3380.99,0.00014246,2]
[340811183,1729866650872,-500.0,0.00014246,2]
[340811185,1729866650881,-879.1,0.00014246,2]
[340811187,1729866650890,-500.0,0.00014246,2]
[340811189,1729866650900,-734.15,0.00014246,2]
[340811191,1729866650909,-3277.92,0.00014246,2]
[340811193,1729866650919,-500.0,0.00014246,2]
[340811195,1729866650929,-768.42,0.00014246,2]
[340811197,1729866650939,-500.0,0.00014246,2]
[340811199,1729866650948,-828.11,0.00014246,2]
[340811201,1729866650957,-500.0,0.00014246,2]
[340811203,1729866650967,-3238.34,0.00014246,2]
[340811205,1729866650976,-500.0,0.00014246,2]
[340811207,1729866650985,-1363.0,0.00014246,2]
[340811209,1729866650996,-500.0,0.00014246,2]
[340811211,1729866651006,-500.0,0.00014246,2]
[340811213,1729866651015,-151.0,0.00014246,2]
[340811215,1729866651024,-1376.47,0.00014246,2]
[340811217,1729866651034,-500.0,0.00014246,2]
[340811219,1729866651043,-500.0,0.00014246,2]
[340811221,1729866651052,-962.32,0.00014246,2]
[340811223,1729866651061,-500.0,0.00014246,2]
[340811225,1729866651070,-894.82,0.00014246,2]
[340811227,1729866651080,-500.0,0.00014246,2]
[340811229,1729866651089,-500.0,0.00014246,2]
[340811231,1729866651098,-500.0,0.00014246,2]
[340811233,1729866651108,-1297.15,0.00014246,2]
[340811235,1729866651119,-1500.0,0.00014246,2]
[340811237,1729866651129,-500.0,0.00014246,2]
[340811239,1729866651138,-1226.61,0.00014246,2]
[340811241,1729866651148,-779.49,0.00014246,2]
[340811243,1729866651157,-460.58703246,0.00014246,2]
[340811245,1729866651166,-641.47,0.00014246,2]
[340811247,1729866651176,-500.0,0.00014246,2]
[340811249,1729866651186,-453.85747171,0.00014246,2]
[340811251,1729866651195,-2176.41,0.00014246,2]
[340811253,1729866651205,-500.0,0.00014246,2]
[340811255,1729866651214,-618.09,0.00014246,2]
[340811258,1729866651224,-500.0,0.00014246,2]
[340811259,1729866651234,-5322.38,0.00014246,2]
[340811261,1729866651245,-1018.24,0.00014246,2]
[340811263,1729866651254,-500.0,0.00014246,2]
[340811265,1729866651263,-500.0,0.00014246,2]
[340811267,1729866651273,-500.0,0.00014246,2]
[340811269,1729866651282,-990.12,0.00014246,2]
[340811271,1729866651291,-637.45,0.00014246,2]
[340811273,1729866651303,-1576.32,0.00014246,2]
[340811275,1729866651313,-6465.96,0.00014246,2]
[340811277,1729866651322,-696.44,0.00014246,2]
[340811279,1729866651331,-10520.43,0.00014246,2]
[340811281,1729866651340,-500.0,0.00014246,2]
[340811283,1729866651349,-2851.47,0.00014246,2]
[340811285,1729866651360,-3003.96,0.00014246,2]
[340811287,1729866651370,-500.0,0.00014246,2]
[340811289,1729866651379,-764.62,0.00014246,2]
[340811291,1729866651388,-3867.86,0.00014246,2]
[340811293,1729866651398,-961.7,0.00014246,2]
[340811295,1729866651407,-500.0,0.00014246,2]
[340811297,1729866651416,-1173.16,0.00014246,2]
[340811299,1729866651426,-151.0,0.00014246,2]
[340811301,1729866651435,-500.0,0.00014246,2]
[340811303,1729866651445,-1227.75,0.00014246,2]
[340811305,1729866651454,-151.0,0.00014246,2]
[340811307,1729866651463,-562.0,0.00014246,2]
[340811309,1729866651472,-500.0,0.00014246,2]
[340811311,1729866651482,-761.75,0.00014246,2]
[340811313,1729866651492,-500.0,0.00014246,2]
[340811315,1729866651503,-500.0,0.00014246,2]
[340811317,1729866651512,-500.0,0.00014246,2]
[340811319,1729866651522,-624.21,0.00014246,2]
[340811321,1729866651531,-1030.63,0.00014246,2]
[340811323,1729866651542,-1000.0,0.00014247,2]
[340811325,1729866651552,-1000.0,0.00014247,2]
[340811328,1729866651563,-1000.0,0.00014247,2]
[340811329,1729866651572,-1000.0,0.00014247,2]
[340811332,1729866651582,-1000.0,0.00014247,2]
[340811334,1729866651592,-500.0,0.00014273,2]
[340811336,1729866651602,-500.0,0.00014273,2]
[340811338,1729866651612,-500.0,0.00014273,2]
[340811340,1729866651621,-500.0,0.00014273,2]
[340811342,1729866651631,-166.18485675,0.00014273,2]
[340811344,1729866651642,-500.0,0.00014273,2]
[340811346,1729866651652,-6105.337922,0.00014384,2]
[340811348,1729866651662,-151.0,0.0001451,2]
[340811350,1729866651671,-151.0,0.0001452,2]
[340811352,1729866651681,-151.0,0.0001452,2]
[340811354,1729866651690,-657.0,0.0001452,2]
[340811356,1729866651699,-513.12401823,0.0001452,2]
[340811358,1729866651708,-500.0,0.0001452,2]
[340811360,1729866651717,-500.0,0.0001452,2]
[340811362,1729866651726,-707.61,0.0001452,2]
[340811364,1729866651735,-546.49,0.0001452,2]
[340811366,1729866651748,-151.0,0.0001452,2]
[340811368,1729866651758,-500.0,0.0001452,2]
[340811370,1729866651767,-500.0,0.0001452,2]
[340811372,1729866651776,-500.0,0.0001452,2]
[340811374,1729866651785,-515.13,0.0001452,2]
[340811376,1729866651795,-582.05,0.0001452,2]
[340811378,1729866651805,-645.91,0.0001452,2]
[340811380,1729866651814,-512.47,0.0001452,2]
[340811382,1729866651823,-500.0,0.0001452,2]
[340811384,1729866651834,-500.0,0.0001452,2]
[340811386,1729866651844,-505.03,0.0001452,2]
[340811388,1729866651853,-633.02,0.0001452,2]
[340811390,1729866651863,-500.0,0.0001452,2]
[340811392,1729866651872,-500.0,0.0001452,2]
[340811394,1729866651881,-500.0,0.0001452,2]
[340811396,1729866651891,-563.39,0.0001452,2]
[340811398,1729866651900,-594.86,0.0001452,2]
[340811400,1729866651909,-665.71,0.0001452,2]
[340811402,1729866651918,-500.0,0.0001452,2]
[340811404,1729866651926,-749.28,0.0001452,2]
[340811406,1729866651935,-802.92,0.0001452,2]
[340811407,1729866651945,-919.68,0.0001452,2]
[340811409,1729866651954,-500.0,0.0001452,2]
[340811411,1729866651963,-500.0,0.0001452,2]
[340811413,1729866651973,-435.84767021,0.0001452,2]
[340811415,1729866651982,-500.0,0.0001452,2]
[340811417,1729866651994,-500.0,0.0001452,2]
[340811419,1729866652003,-677.05,0.0001452,2]
[340811421,1729866652012,-500.0,0.0001452,2]
[340811423,1729866652022,-500.0,0.0001452,2]
[340811425,1729866652032,-1550.62,0.0001452,2]
[340811427,1729866652041,-500.0,0.0001452,2]
[340811429,1729866652051,-500.0,0.0001452,2]
[340811431,1729866652060,-503.27,0.0001452,2]
[340811433,1729866652070,-971.34,0.0001452,2]
[340811435,1729866652079,-500.0,0.0001452,2]
[340811437,1729866652089,-878.63,0.0001452,2]
[340811439,1729866652098,-538.86,0.0001452,2]
[340811440,1729866652108,-500.0,0.0001452,2]
[340811441,1729866652117,-500.0,0.0001452,2]
[340811442,1729866652126,-517.94,0.0001452,2]
[340811443,1729866652136,-763.66,0.0001452,2]
[340811444,1729866652145,-647.38,0.0001452,2]
[340811445,1729866652155,-500.0,0.0001452,2]
[340811446,1729866652165,-500.0,0.0001452,2]
[340811447,1729866652174,-500.0,0.0001452,2]
[340811448,1729866652184,-905.98,0.0001452,2]
[340811449,1729866652194,-929.53,0.0001452,2]
[340811450,1729866652204,-943.74,0.0001452,2]
[340811452,1729866652214,-622.64,0.0001452,2]
[340811454,1729866652225,-1868.15,0.0001452,2]
[340811456,1729866652235,-1614.97,0.0001452,2]
[340811458,1729866652246,-1763.8,0.0001452,2]
[340811460,1729866652255,-727.38,0.0001452,2]
[340811462,1729866652265,-500.0,0.0001452,2]
[340811464,1729866652275,-500.0,0.0001452,2]
[340811466,1729866652284,-551.62191844,0.0001452,2]
[340811485,1729866652457,-119.12808156,0.0001452,2]
[340811487,1729866652467,-567.22101301,0.0001452,2]
[340813726,1729866903115,538.33,0.00022,120]
[340813728,1729867194388,972.0,0.00023,120]
[340813729,1729867329473,1000.0,0.00022,60]
[340813732,1729867515659,166.8,0.00022,60]
[340813760,1729867832329,-300.0,0.00012667,2]
[340813762,1729867832339,-300.0,0.00012667,2]
[340813764,1729867832348,-15286.304332,0.00012668,2]
[340813766,1729867832359,-70348.7747943,0.00013678,2]
[340813768,1729867832369,-12440.4558854,0.00013678,2]
[340813770,1729867832380,-97608.18341802,0.00013688,2]
[340813774,1729867832408,-673.0,0.00013688,2]
[340813777,1729867832419,-1168.79257606,0.00013688,2]
[340814168,1729867838845,-58834.76729292,0.00013688,2]
[340814170,1729867838855,-1039.98940708,0.00013688,2]
[340814172,1729867838868,-3226.52601105,0.00013688,2]
[340814331,1729867840447,-673.22,0.00013688,2]
[340814336,1729867840489,-1761.7,0.00013688,2]
[340814338,1729867840501,-24399.70429527,0.00013688,2]
[340814339,1729867840511,-502.37539875,0.00013698,2]
[340814341,1729867840521,-500.0,0.00013698,2]
[340814343,1729867840531,-500.0,0.00013698,2]
[340814345,1729867840540,-500.0,0.00013698,2]
[340814346,1729867840549,-500.0,0.00013698,2]
[340814348,1729867840559,-500.0,0.00013698,2]
[340814350,1729867840569,-500.0,0.00013698,2]
[340814352,1729867840578,-184.88166298,0.00013698,2]
[340814354,1729867840588,-640.79946158,0.00013698,2]
[340814356,1729867840599,-500.0,0.00013698,2]
[340814358,1729867840608,-500.0,0.00013698,2]
[340814359,1729867840622,-500.0,0.00013698,2]
[340814361,1729867840635,-500.0,0.00013698,2]
[340814363,1729867840645,-500.0,0.00013698,2]
[340814365,1729867840655,-500.0,0.00013698,2]
[340814367,1729867840665,-582.5,0.00013698,2]
[340814368,1729867840675,-500.0,0.00013698,2]
[340814370,1729867840685,-525.91272487,0.00013698,2]
[340814372,1729867840695,-500.0,0.00013698,2]
[340814374,1729867840705,-500.0,0.00013698,2]
[340814376,1729867840715,-500.0,0.00013698,2]
[340814378,1729867840725,-500.0,0.00013698,2]
[340814379,1729867840735,-511.68575893,0.00013698,2]
[340814381,1729867840745,-511.10137705,0.00013698,2]
[340814383,1729867840755,-500.0,0.00013698,2]
[340814385,1729867840764,-520.51,0.00013698,2]
[340814387,1729867840774,-500.0,0.00013698,2]
[340814389,1729867840784,-257.87384755,0.00013698,2]
[340814390,1729867840793,-804.72,0.00013698,2]
[340814392,1729867840803,-506.98258096,0.00013698,2]
[340814394,1729867840813,-524.02119556,0.00013698,2]
[340814396,1729867840823,-500.0,0.00013698,2]
[340814398,1729867840834,-500.0,0.00013698,2]
[340814400,1729867840845,-500.0,0.00013698,2]
[340814402,1729867840855,-500.0,0.00013698,2]
[340814403,1729867840869,-500.0,0.00013698,2]
[340814405,1729867840878,-500.0,0.00013698,2]
[340814407,1729867840888,-702.55,0.00013698,2]
[340814409,1729867840903,-592.42,0.00013698,2]
[340814411,1729867840913,-500.0,0.00013698,2]
[340814413,1729867840923,-500.0,0.00013698,2]
[340814415,1729867840933,-500.0,0.00013698,2]
[340814417,1729867840944,-500.0,0.00013698,2]
[340814419,1729867840954,-500.0,0.00013698,2]
[340814421,1729867840963,-505.37920282,0.00013698,2]
[340814423,1729867840975,-500.0,0.00013698,2]
[340814425,1729867840986,-500.0,0.00013698,2]
[340814426,1729867840996,-500.0,0.00013698,2]
[340814428,1729867841006,-500.0,0.00013698,2]
[340814430,1729867841016,-500.0,0.00013698,2]
[340814432,1729867841026,-500.0,0.00013698,2]
[340814434,1729867841035,-500.83930935,0.00013698,2]
[340814436,1729867841045,-500.0,0.00013698,2]
[340814437,1729867841054,-500.0,0.00013698,2]
[340814439,1729867841064,-500.0,0.00013698,2]
[340814441,1729867841074,-500.0,0.00013698,2]
[340814443,1729867841083,-500.0,0.00013698,2]
[340814444,1729867841093,-500.0,0.00013698,2]
[340814446,1729867841103,-502.98796339,0.00013698,2]
[340814448,1729867841118,-501.02009147,0.00013698,2]
[340814450,1729867841128,-500.0,0.00013698,2]
[340814452,1729867841137,-500.0,0.00013698,2]
[340814454,1729867841147,-500.0,0.00013698,2]
[340814456,1729867841158,-500.0,0.00013698,2]
[340814458,1729867841167,-500.0,0.00013698,2]
[340814460,1729867841176,-500.0,0.00013698,2]
[340814462,1729867841186,-515.78925291,0.00013698,2]
[340814464,1729867841195,-500.0,0.00013698,2]
[340814466,1729867841205,-500.0,0.00013698,2]
[340814467,1729867841215,-502.71669362,0.00013698,2]
[340814469,1729867841224,-513.71568955,0.00013698,2]
[340814471,1729867841234,-500.46953073,0.00013698,2]
[340814473,1729867841245,-500.0,0.00013698,2]
[340814475,1729867841256,-500.0,0.00013698,2]
[340814477,1729867841265,-500.0,0.00013698,2]
[340814479,1729867841276,-500.0,0.00013698,2]
[340814481,1729867841286,-500.0,0.00013698,2]
[340814483,1729867841297,-500.0,0.00013698,2]
[340814485,1729867841308,-500.0,0.00013698,2]
[340814487,1729867841318,-500.0,0.00013698,2]
[340814489,1729867841327,-501.42805229,0.00013698,2]
[340814491,1729867841337,-500.0,0.00013698,2]
[340814493,1729867841347,-500.0,0.00013698,2]